[Event "New Zealand Rapid Championship"]
[Site "Wellington"]
[Date "2023.01.12"]
[Round "8.3"]
[White "Hague, Ben"]
[Black "Parfene, Horatiu"]
[Result "1-0"]
[TimeControl "25+5"]
[WhiteTitle "FM"]
[WhiteFideId "405647"]
[BlackFideId "1208438"]
[WhiteElo "2410"]
[BlackElo "2085"]

1. d4 {[%clk 00:25:08]} {[%emt 00:00:03]} Nf6 {[%clk 00:25:05]} {[%emt
00:00:05]} 2. Bg5 {[%clk 00:25:11]} {[%emt 00:00:01]} g6 {[%clk 00:25:06]}
{[%emt 00:00:05]} 3. Bxf6 {[%clk 00:25:14]} {[%emt 00:00:02]} exf6 {[%clk
00:25:10]} 4. e3 {[%clk 00:25:18]} {[%emt 00:00:03]} Bg7 {[%clk 00:25:12]}
{[%emt 00:00:03]} 5. g3 {[%clk 00:25:19]} {[%emt 00:00:04]} O-O {[%clk
00:25:10]} {[%emt 00:00:07]} 6. Bg2 {[%clk 00:25:22]} {[%emt 00:00:01]} d5
{[%clk 00:24:26]} {[%emt 00:00:50]} 7. Ne2 {[%clk 00:25:24]} {[%emt 00:00:03]}
c6 {[%clk 00:24:23]} {[%emt 00:00:08]} 8. O-O {[%clk 00:25:25]} {[%emt
00:00:04]} Bg4 {[%clk 00:22:36]} {[%emt 00:01:52]} 9. Nd2 {[%clk 00:25:13]}
{[%emt 00:00:16]} Na6 {[%clk 00:21:46]} {[%emt 00:00:56]} 10. Re1 {[%clk
00:24:18]} {[%emt 00:01:00]} Nc7 {[%clk 00:19:40]} {[%emt 00:02:11]} 11. c4
{[%clk 00:23:51]} {[%emt 00:00:32]} Re8 {[%clk 00:17:58]} {[%emt 00:01:47]} 12.
Qb3 {[%clk 00:23:22]} {[%emt 00:00:34]} Qd7 {[%clk 00:17:29]} {[%emt 00:00:34]}
13. Nc3 {[%clk 00:22:29]} {[%emt 00:00:58]} Be6 {[%clk 00:17:06]} {[%emt
00:00:28]} 14. cxd5 {[%clk 00:21:22]} {[%emt 00:01:12]} Nxd5 {[%clk 00:16:49]}
{[%emt 00:00:22]} 15. Nxd5 {[%clk 00:21:21]} {[%emt 00:00:06]} Bxd5 {[%clk
00:16:46]} {[%emt 00:00:09]} 16. Bxd5 {[%clk 00:21:20]} {[%emt 00:00:06]} cxd5
{[%clk 00:16:06]} {[%emt 00:00:45]} 17. Rac1 {[%clk 00:20:38]} {[%emt
00:00:47]} Rac8 {[%clk 00:15:43]} {[%emt 00:00:28]} 18. Nb1 {[%clk 00:18:36]}
{[%emt 00:02:07]} Bf8 {[%clk 00:13:45]} {[%emt 00:02:02]} 19. Nc3 {[%clk
00:18:28]} {[%emt 00:00:13]} Red8 {[%clk 00:10:38]} {[%emt 00:03:13]} 20. Rc2
{[%clk 00:17:25]} {[%emt 00:01:08]} Rc4 {[%clk 00:10:12]} {[%emt 00:00:31]} 21.
Nxd5 {[%clk 00:16:49]} {[%emt 00:00:41]} Rc6 {[%clk 00:09:00]} {[%emt
00:01:17]} 22. Nf4 {[%clk 00:15:07]} {[%emt 00:01:46]} Rdc8 {[%clk 00:07:48]}
{[%emt 00:01:18]} 23. Rec1 {[%clk 00:14:57]} {[%emt 00:00:14]} g5 {[%clk
00:05:38]} {[%emt 00:02:16]} 24. Rxc6 {[%clk 00:13:34]} {[%emt 00:01:28]} Rxc6
{[%clk 00:05:30]} {[%emt 00:00:13]} 25. Rxc6 {[%clk 00:13:22]} {[%emt
00:00:18]} gxf4 {[%clk 00:04:48]} {[%emt 00:00:46]} 26. Rxf6 {[%clk 00:12:47]}
{[%emt 00:00:39]} Bg7 {[%clk 00:03:13]} {[%emt 00:01:40]} 27. Rxf4 {[%clk
00:12:43]} {[%emt 00:00:10]} Bh6 {[%clk 00:02:59]} {[%emt 00:00:21]} 28. Rf3
{[%clk 00:11:52]} {[%emt 00:00:54]} 1-0

[Event "New Zealand Rapid Championship"]
[Site "Wellington"]
[Date "2023.01.12"]
[Round "8.4"]
[White "Van Riemsdijk, Herman C."]
[Black "Van der Hoorn, Thomas"]
[Result "1-0"]
[TimeControl "25+5"]
[WhiteTitle "IM"]
[WhiteFideId "2100053"]
[BlackFideId "4314565"]
[WhiteElo "2370"]
[BlackElo "1888"]

1. e4 {[%clk 00:25:08]} {[%emt 00:00:03]} c6 {[%clk 00:25:06]} {[%emt
00:00:03]} 2. d4 {[%clk 00:25:04]} {[%emt 00:00:09]} d5 {[%clk 00:25:06]}
{[%emt 00:00:05]} 3. Nc3 {[%clk 00:25:05]} {[%emt 00:00:05]} dxe4 {[%clk
00:25:07]} {[%emt 00:00:04]} 4. Nxe4 {[%clk 00:25:07]} {[%emt 00:00:03]} Nf6
{[%clk 00:24:55]} {[%emt 00:00:16]} 5. Nxf6+ {[%clk 00:24:48]} {[%emt
00:00:24]} exf6 {[%clk 00:24:52]} {[%emt 00:00:08]} 6. c3 {[%clk 00:24:40]}
{[%emt 00:00:12]} Bd6 {[%clk 00:24:52]} {[%emt 00:00:06]} 7. Bd3 {[%clk
00:24:39]} {[%emt 00:00:06]} O-O {[%clk 00:24:50]} {[%emt 00:00:07]} 8. Qc2
{[%clk 00:24:32]} {[%emt 00:00:12]} Re8+ {[%clk 00:24:28]} {[%emt 00:00:28]} 9.
Ne2 {[%clk 00:24:29]} {[%emt 00:00:07]} h5 {[%clk 00:23:46]} {[%emt 00:00:47]}
10. Be3 {[%clk 00:24:06]} {[%emt 00:00:26]} h4 {[%clk 00:22:41]} {[%emt
00:01:10]} 11. O-O-O {[%clk 00:23:38]} {[%emt 00:00:35]} Nd7 {[%clk 00:22:32]}
{[%emt 00:00:14]} 12. g3 {[%clk 00:22:03]} {[%emt 00:01:40]} h3 {[%clk
00:21:48]} {[%emt 00:00:48]} 13. Bh7+ {[%clk 00:21:27]} {[%emt 00:00:41]} Kh8
{[%clk 00:21:43]} {[%emt 00:00:09]} 14. Bf5 {[%clk 00:21:27]} {[%emt 00:00:06]}
Nf8 {[%clk 00:21:20]} {[%emt 00:00:28]} 15. Nf4 {[%clk 00:15:56]} {[%emt
00:05:36]} Bxf4 {[%clk 00:20:05]} {[%emt 00:01:20]} 16. Bxf4 {[%clk 00:15:50]}
{[%emt 00:00:10]} g6 {[%clk 00:19:48]} {[%emt 00:00:23]} 17. Bxc8 {[%clk
00:14:51]} {[%emt 00:01:04]} Rxc8 {[%clk 00:19:44]} {[%emt 00:00:09]} 18. Rhe1
{[%clk 00:14:37]} {[%emt 00:00:20]} Qd7 {[%clk 00:18:20]} {[%emt 00:01:28]} 19.
Qb3 {[%clk 00:10:58]} {[%emt 00:03:45]} Rxe1 {[%clk 00:14:40]} {[%emt
00:03:45]} 20. Rxe1 {[%clk 00:10:57]} {[%emt 00:00:05]} Re8 {[%clk 00:13:53]}
{[%emt 00:00:51]} 21. Be3 {[%clk 00:06:32]} {[%emt 00:04:31]} Ne6 {[%clk
00:13:36]} {[%emt 00:00:21]} 22. Rd1 {[%clk 00:06:28]} {[%emt 00:00:10]} Rd8
{[%clk 00:10:48]} {[%emt 00:02:53]} 23. c4 {[%clk 00:05:57]} {[%emt 00:00:36]}
Qc7 {[%clk 00:10:05]} {[%emt 00:00:49]} 24. Kb1 {[%clk 00:05:43]} {[%emt
00:00:19]} b6 {[%clk 00:07:25]} {[%emt 00:02:45]} 25. d5 {[%clk 00:05:24]}
{[%emt 00:00:23]} cxd5 {[%clk 00:06:56]} {[%emt 00:00:35]} 26. cxd5 {[%clk
00:05:15]} {[%emt 00:00:13]} Nc5 {[%clk 00:06:51]} {[%emt 00:00:09]} 27. Qc4
{[%clk 00:03:35]} {[%emt 00:01:48]} Ne6 {[%clk 00:04:38]} {[%emt 00:02:17]} 28.
Qh4+ {[%clk 00:03:23]} {[%emt 00:00:16]} Kg8 {[%clk 00:04:05]} {[%emt
00:00:39]} 29. Qxf6 {[%clk 00:03:07]} {[%emt 00:00:22]} Ng7 {[%clk 00:03:16]}
{[%emt 00:00:55]} 30. Bd4 {[%clk 00:25:05]} {[%emt 00:01:01]} 1-0

[Event "New Zealand Rapid Championship"]
[Site "Wellington"]
[Date "2023.01.12"]
[Round "8.5"]
[White "Zhang, Kendrick Botong"]
[Black "Dive, Russell J"]
[Result "0-1"]
[TimeControl "25+5"]
[WhiteTitle "CM"]
[BlackTitle "IM"]
[WhiteFideId "4307704"]
[BlackFideId "4300106"]
[WhiteElo "1870"]
[BlackElo "2367"]

1. e4 {[%clk 00:25:06]} {[%emt 00:00:02]} Nf6 {[%clk 00:24:54]} {[%emt
00:00:17]} 2. e5 {[%clk 00:25:10]} {[%emt 00:00:01]} Nd5 {[%clk 00:24:59]} 3.
c4 {[%clk 00:25:12]} {[%emt 00:00:03]} Nb6 {[%clk 00:25:03]} {[%emt 00:00:01]}
4. d4 {[%clk 00:25:15]} d6 {[%clk 00:25:07]} {[%emt 00:00:01]} 5. exd6 {[%clk
00:25:19]} cxd6 {[%clk 00:25:07]} {[%emt 00:00:06]} 6. Nc3 {[%clk 00:22:03]}
{[%emt 00:03:21]} g6 {[%clk 00:25:10]} {[%emt 00:00:03]} 7. Be3 {[%clk
00:21:47]} {[%emt 00:00:20]} Bg7 {[%clk 00:25:14]} {[%emt 00:00:02]} 8. b3
{[%clk 00:21:19]} {[%emt 00:00:33]} O-O {[%clk 00:24:57]} {[%emt 00:00:22]} 9.
Nf3 {[%clk 00:21:22]} {[%emt 00:00:01]} Bg4 {[%clk 00:24:28]} {[%emt 00:00:34]}
10. Be2 {[%clk 00:20:04]} {[%emt 00:01:23]} Nc6 {[%clk 00:24:31]} {[%emt
00:00:03]} 11. h3 {[%clk 00:19:57]} {[%emt 00:00:11]} Bxf3 {[%clk 00:24:31]}
{[%emt 00:00:05]} 12. Bxf3 {[%clk 00:20:00]} {[%emt 00:00:02]} e6 {[%clk
00:24:17]} {[%emt 00:00:20]} 13. Qd2 {[%clk 00:19:57]} {[%emt 00:00:09]} d5
{[%clk 00:24:20]} {[%emt 00:00:02]} 14. cxd5 {[%clk 00:16:54]} {[%emt
00:03:08]} Nxd5 {[%clk 00:24:22]} {[%emt 00:00:02]} 15. Nxd5 {[%clk 00:16:45]}
{[%emt 00:00:14]} exd5 {[%clk 00:24:25]} {[%emt 00:00:02]} 16. O-O {[%clk
00:16:37]} {[%emt 00:00:10]} Qd6 {[%clk 00:23:12]} {[%emt 00:01:20]} 17. Rac1
{[%clk 00:14:14]} {[%emt 00:02:28]} Rad8 {[%clk 00:22:01]} {[%emt 00:01:17]} 18.
Rc5 {[%clk 00:13:44]} {[%emt 00:00:35]} Qe6 {[%clk 00:20:31]} {[%emt 00:01:35]}
19. b4 {[%clk 00:13:39]} {[%emt 00:00:10]} b6 {[%clk 00:19:32]} {[%emt
00:01:04]} 20. Rc2 {[%clk 00:13:35]} {[%emt 00:00:09]} a5 {[%emt 00:07:44]} 21.
a3 {[%clk 00:08:05]} axb4 {[%clk 00:17:13]} {[%emt 00:00:19]} 22. axb4 {[%clk
00:08:08]} {[%emt 00:00:01]} h5 {[%clk 00:17:08]} {[%emt 00:00:11]} 23. Rfc1
{[%clk 00:08:02]} {[%emt 00:00:11]} Ne7 {[%clk 00:17:02]} {[%emt 00:00:11]} 24.
Bh6 {[%clk 00:06:12]} {[%emt 00:01:55]} Rc8 {[%clk 00:16:38]} {[%emt 00:00:29]}
25. Bxg7 {[%clk 00:05:51]} {[%emt 00:00:25]} Kxg7 {[%clk 00:16:37]} {[%emt
00:00:08]} 26. Rxc8 {[%clk 00:03:19]} {[%emt 00:02:36]} Rxc8 {[%clk 00:16:40]}
{[%emt 00:00:02]} 27. Re1 {[%clk 00:03:23]} {[%emt 00:00:01]} Qf6 {[%clk
00:15:12]} {[%emt 00:01:33]} 28. Qe3 {[%clk 00:02:47]} {[%emt 00:00:42]} Nf5
{[%clk 00:15:14]} {[%emt 00:00:03]} 29. Qe5 {[%emt 00:02:17]} Rc4 {[%clk
00:13:50]} 30. Bxd5 {[%clk 00:01:10]} {[%emt 00:00:59]} Rxb4 {[%clk 00:13:07]}
{[%emt 00:00:47]} 31. Qxf6+ {[%clk 00:00:19]} {[%emt 00:00:56]} Kxf6 {[%clk
00:13:09]} {[%emt 00:00:03]} 32. Re8 {[%clk 00:00:21]} {[%emt 00:00:03]} Rxd4
{[%clk 00:13:00]} {[%emt 00:00:14]} 33. Bf3 {[%clk 00:00:22]} {[%emt 00:00:04]}
Rd6 {[%clk 00:12:40]} {[%emt 00:00:25]} 34. Rb8 {[%clk 00:00:11]} {[%emt
00:00:16]} Nd4 {[%clk 00:12:43]} {[%emt 00:00:03]} 35. Be4 {[%clk 00:00:12]}
{[%emt 00:00:04]} Ke5 {[%clk 00:12:20]} {[%emt 00:00:27]} 36. Bd3 {[%clk
00:00:08]} {[%emt 00:00:09]} Ne6 {[%clk 00:11:57]} {[%emt 00:00:28]} 37. Bc4
{[%clk 00:00:09]} {[%emt 00:00:04]} Kd4 {[%clk 00:11:58]} {[%emt 00:00:03]} 38.
Bb5 {[%clk 00:00:08]} {[%emt 00:00:07]} Kc5 {[%clk 00:11:29]} {[%emt 00:00:34]}
39. Ba4 {[%clk 00:00:07]} {[%emt 00:00:06]} Nd4 {[%clk 00:10:20]} {[%emt
00:01:14]} 40. Be8 {[%clk 00:00:10]} {[%emt 00:00:02]} f5 {[%clk 00:09:21]}
{[%emt 00:01:05]} 41. Kf1 {[%clk 00:00:09]} {[%emt 00:00:05]} b5 {[%clk
00:09:19]} {[%emt 00:00:07]} 42. Ke1 {[%clk 00:00:09]} {[%emt 00:00:05]} b4
{[%clk 00:09:19]} {[%emt 00:00:05]} 43. Bf7 {[%clk 00:00:13]} {[%emt 00:00:02]}
Nc6 {[%clk 00:09:06]} {[%emt 00:00:17]} 44. Rb7 {[%clk 00:00:06]} {[%emt
00:00:12]} Ne5 {[%clk 00:08:54]} {[%emt 00:00:19]} 45. Bg8 {[%clk 00:00:07]}
{[%emt 00:00:03]} Rb6 {[%clk 00:08:38]} {[%emt 00:00:21]} 46. Rc7+ {[%clk
00:00:06]} {[%emt 00:00:05]} Kd4 {[%clk 00:08:39]} {[%emt 00:00:03]} 47. Rc2
{[%clk 00:00:06]} {[%emt 00:00:06]} b3 {[%clk 00:08:36]} {[%emt 00:00:08]} 48.
Bxb3 {[%clk 00:00:07]} {[%emt 00:00:05]} Rxb3 {[%clk 00:08:39]} {[%emt
00:00:03]} 49. Rc8 {[%clk 00:00:06]} {[%emt 00:00:05]} Rb1+ {[%clk 00:08:28]}
{[%emt 00:00:17]} 50. Ke2 {[%clk 00:00:10]} Rb2+ {[%clk 00:08:30]} {[%emt
00:00:02]} 51. Ke1 {[%clk 00:00:06]} {[%emt 00:00:09]} Nd3+ {[%clk 00:08:32]}
{[%emt 00:00:05]} 52. Kf1 {[%clk 00:00:08]} {[%emt 00:00:02]} Rxf2+ {[%clk
00:08:31]} {[%emt 00:00:05]} 53. Kg1 {[%clk 00:00:10]} {[%emt 00:00:02]} Rb2
{[%clk 00:08:25]} {[%emt 00:00:12]} 54. Re8 {[%clk 00:00:11]} {[%emt 00:00:03]}
Nf4 {[%clk 00:08:21]} {[%emt 00:00:09]} 55. h4 {[%clk 00:00:09]} {[%emt
00:00:08]} Nxg2 {[%clk 00:08:15]} {[%emt 00:00:10]} 56. Rd8+ {[%clk 00:00:08]}
{[%emt 00:00:05]} Kd5 {[%emt 00:00:11]} 0-1

[Event "New Zealand Rapid Championship"]
[Site "Wellington"]
[Date "2023.01.12"]
[Round "8.6"]
[White "Tanoi, T Edward"]
[Black "Sole, Michael D"]
[Result "0-1"]
[TimeControl "25+5"]
[WhiteFideId "4302087"]
[BlackFideId "4309030"]
[WhiteElo "1883"]
[BlackElo "2093"]

1. d4 {[%clk 00:25:04]} {[%emt 00:00:05]} Nf6 {[%clk 00:24:59]} {[%emt
00:00:12]} 2. Nf3 {[%clk 00:25:07]} {[%emt 00:00:02]} d5 {[%clk 00:24:58]}
{[%emt 00:00:06]} 3. Bg5 {[%clk 00:24:22]} {[%emt 00:00:49]} Ne4 {[%clk
00:24:36]} {[%emt 00:00:28]} 4. Bh4 {[%clk 00:23:50]} {[%emt 00:00:36]} c5
{[%clk 00:23:53]} {[%emt 00:00:48]} 5. e3 {[%clk 00:23:51]} {[%emt 00:00:04]}
Qb6 {[%clk 00:23:48]} {[%emt 00:00:11]} 6. Qc1 {[%clk 00:22:58]} {[%emt
00:00:58]} cxd4 {[%clk 00:23:10]} {[%emt 00:00:43]} 7. exd4 {[%clk 00:22:59]}
{[%emt 00:00:04]} Nc6 {[%clk 00:22:53]} {[%emt 00:00:22]} 8. c3 {[%clk
00:22:42]} {[%emt 00:00:21]} Bf5 {[%clk 00:22:24]} {[%emt 00:00:34]} 9. Be2
{[%clk 00:21:59]} {[%emt 00:00:48]} Rc8 {[%clk 00:21:37]} {[%emt 00:00:53]} 10.
O-O {[%clk 00:20:25]} {[%emt 00:01:31]} e6 {[%clk 00:21:10]} {[%emt 00:00:40]}
11. Nbd2 {[%clk 00:20:07]} {[%emt 00:00:22]} Bd6 {[%clk 00:20:32]} {[%emt
00:00:44]} 12. Nb3 {[%clk 00:19:20]} {[%emt 00:00:52]} a5 {[%clk 00:20:07]}
{[%emt 00:00:30]} 13. Nbd2 {[%clk 00:15:28]} {[%emt 00:03:57]} O-O {[%clk
00:19:53]} {[%emt 00:00:19]} 14. a4 {[%clk 00:12:42]} {[%emt 00:02:51]} Rfe8
{[%clk 00:19:08]} {[%emt 00:00:50]} 15. Bb5 {[%clk 00:12:27]} {[%emt 00:00:21]}
Be7 {[%clk 00:18:41]} {[%emt 00:00:32]} 16. Bxe7 {[%clk 00:12:18]} {[%emt
00:00:14]} Rxe7 {[%clk 00:18:45]} {[%emt 00:00:02]} 17. Nh4 {[%clk 00:11:14]}
{[%emt 00:01:07]} Nxd4 {[%clk 00:18:23]} {[%emt 00:00:28]} 18. Nxf5 {[%clk
00:10:34]} {[%emt 00:00:44]} exf5 {[%clk 00:17:44]} {[%emt 00:00:45]} 19. Nxe4
{[%clk 00:10:24]} {[%emt 00:00:15]} fxe4 {[%clk 00:16:15]} {[%emt 00:01:34]} 20.
Qe3 {[%emt 00:02:07]} f5 {[%clk 00:14:38]} 21. cxd4 {[%clk 00:08:45]} {[%emt
00:01:23]} Rf8 {[%clk 00:14:18]} {[%emt 00:00:26]} 22. g3 {[%clk 00:06:52]}
{[%emt 00:01:58]} f4 {[%clk 00:14:22]} 23. gxf4 {[%clk 00:06:55]} {[%emt
00:00:02]} Qd6 {[%clk 00:14:10]} {[%emt 00:00:17]} 24. Be2 {[%clk 00:05:39]}
{[%emt 00:01:21]} Rxf4 {[%clk 00:14:04]} {[%emt 00:00:11]} 25. Kh1 {[%clk
00:05:42]} {[%emt 00:00:02]} Ref7 {[%clk 00:13:20]} {[%emt 00:00:50]} 26. Rac1
{[%clk 00:05:13]} {[%emt 00:00:33]} h6 {[%clk 00:13:24]} {[%emt 00:00:02]} 27.
Qg3 {[%clk 00:04:19]} {[%emt 00:00:59]} Qe6 {[%clk 00:13:13]} {[%emt 00:00:15]}
28. Bh5 {[%clk 00:03:50]} {[%emt 00:00:34]} Rf8 {[%clk 00:12:53]} {[%emt
00:00:26]} 29. Rg1 {[%clk 00:03:37]} {[%emt 00:00:17]} Qf6 {[%clk 00:12:33]}
{[%emt 00:00:27]} 30. Rc7 {[%clk 00:03:26]} {[%emt 00:00:14]} g5 {[%clk
00:12:20]} {[%emt 00:00:19]} 31. h4 {[%clk 00:03:08]} {[%emt 00:00:22]} Rf5
{[%clk 00:10:45]} {[%emt 00:01:40]} 32. Rd7 {[%clk 00:02:31]} {[%emt 00:00:42]}
Rc8 {[%clk 00:07:00]} {[%emt 00:03:50]} 33. Rd6 {[%clk 00:01:52]} {[%emt
00:00:44]} Qxd4 {[%clk 00:06:13]} {[%emt 00:00:52]} 34. Bg4 {[%clk 00:01:35]}
{[%emt 00:00:21]} Rcf8 {[%clk 00:05:13]} {[%emt 00:01:05]} 35. Bxf5 {[%clk
00:01:38]} {[%emt 00:00:03]} Rxf5 {[%clk 00:05:16]} {[%emt 00:00:02]} 36. Rxh6
{[%clk 00:01:41]} {[%emt 00:00:02]} e3 {[%clk 00:04:55]} {[%emt 00:00:26]} 37.
Rg6+ {[%clk 00:00:40]} {[%emt 00:01:06]} Kf7 {[%clk 00:04:34]} {[%emt
00:00:26]} 38. Rxg5 {[%clk 00:00:42]} {[%emt 00:00:02]} Qe4+ {[%clk 00:04:19]}
{[%emt 00:00:23]} 39. f3 {[%clk 00:00:45]} Rxf3 {[%clk 00:04:14]} {[%emt
00:00:09]} 40. Qc7+ {[%clk 00:00:16]} {[%emt 00:00:35]} Ke6 {[%clk 00:03:06]}
{[%emt 00:01:14]} 41. Rg6+ {[%clk 00:00:18]} {[%emt 00:00:02]} Rf6+ {[%clk
00:03:04]} {[%emt 00:00:06]} 42. R1g2 {[%clk 00:00:08]} {[%emt 00:00:16]} Rxg6
{[%clk 00:02:08]} {[%emt 00:01:01]} 43. Qb6+ {[%clk 00:00:07]} {[%emt
00:00:07]} Kf7 {[%clk 00:01:55]} {[%emt 00:00:17]} 44. Qxb7+ {[%clk 00:00:10]}
{[%emt 00:00:02]} Kg8 {[%clk 00:01:40]} {[%emt 00:00:20]} 45. Qc8+ {[%clk
00:00:13]} {[%emt 00:00:02]} Kh7 {[%clk 00:01:20]} {[%emt 00:00:25]} 46. Qd7+
{[%clk 00:00:07]} {[%emt 00:00:12]} Kh6 {[%clk 00:01:20]} {[%emt 00:00:04]} 47.
Qh3 {[%clk 00:00:10]} {[%emt 00:00:02]} e2 {[%clk 00:01:04]} {[%emt 00:00:22]}
48. Kh2 {[%clk 00:00:13]} {[%emt 00:00:01]} Qxg2+ {[%clk 00:01:05]} {[%emt
00:00:04]} 49. Qxg2 {[%clk 00:00:16]} {[%emt 00:00:02]} Rxg2+ {[%clk 00:01:09]}
{[%emt 00:00:01]} 50. Kxg2 {[%clk 00:00:12]} {[%emt 00:00:01]} 0-1

[Event "New Zealand Rapid Championship"]
[Site "Wellington"]
[Date "2023.01.12"]
[Round "8.8"]
[White "Carpinter, Anthony L"]
[Black "Winsley, Nicholas"]
[Result "0-1"]
[TimeControl "25+5"]
[WhiteFideId "4300238"]
[BlackFideId "4315146"]
[WhiteElo "2147"]
[BlackElo "1854"]

1. Nf3 {[%clk 00:25:07]} {[%emt 00:00:02]} Nf6 {[%clk 00:25:06]} {[%emt
00:00:05]} 2. d4 {[%clk 00:25:06]} {[%emt 00:00:05]} d5 {[%clk 00:25:00]}
{[%emt 00:00:12]} 3. c4 {[%clk 00:25:05]} {[%emt 00:00:05]} c6 {[%clk
00:25:03]} {[%emt 00:00:02]} 4. e3 {[%clk 00:23:49]} {[%emt 00:01:21]} a6
{[%clk 00:23:01]} {[%emt 00:02:07]} 5. Be2 {[%clk 00:22:30]} {[%emt 00:01:24]}
Bf5 {[%clk 00:22:53]} {[%emt 00:00:14]} 6. O-O {[%clk 00:22:14]} {[%emt
00:00:21]} e6 {[%clk 00:22:29]} {[%emt 00:00:29]} 7. Nbd2 {[%clk 00:21:19]}
{[%emt 00:01:00]} Nbd7 {[%clk 00:21:53]} {[%emt 00:00:41]} 8. Nh4 {[%clk
00:20:51]} {[%emt 00:00:32]} Bg6 {[%clk 00:21:37]} {[%emt 00:00:21]} 9. Nxg6
{[%clk 00:17:45]} {[%emt 00:03:11]} hxg6 {[%clk 00:21:39]} {[%emt 00:00:02]} 10.
Bf3 {[%clk 00:16:50]} {[%emt 00:01:01]} Bd6 {[%clk 00:20:54]} {[%emt 00:00:51]}
11. h3 {[%clk 00:16:48]} {[%emt 00:00:06]} Qe7 {[%clk 00:18:34]} {[%emt
00:02:25]} 12. e4 {[%clk 00:11:10]} {[%emt 00:05:43]} dxe4 {[%clk 00:18:07]}
{[%emt 00:00:32]} 13. Bxe4 {[%clk 00:10:37]} {[%emt 00:00:38]} Bc7 {[%clk
00:16:58]} {[%emt 00:01:14]} 14. Re1 {[%clk 00:10:32]} {[%emt 00:00:10]} Nxe4
{[%clk 00:16:48]} {[%emt 00:00:15]} 15. Rxe4 {[%clk 00:10:29]} {[%emt
00:00:08]} O-O-O {[%clk 00:16:36]} {[%emt 00:00:18]} 16. Nf3 {[%clk 00:09:09]}
{[%emt 00:01:25]} Nf6 {[%clk 00:16:21]} {[%emt 00:00:20]} 17. Bg5 {[%clk
00:07:24]} {[%emt 00:01:49]} Qb4 {[%clk 00:15:58]} {[%emt 00:00:28]} 18. Bxf6
{[%clk 00:06:59]} {[%emt 00:00:30]} gxf6 {[%clk 00:16:01]} {[%emt 00:00:02]} 19.
Qc2 {[%clk 00:06:51]} {[%emt 00:00:14]} Qd6 {[%clk 00:15:13]} {[%emt 00:00:53]}
20. Rd1 {[%clk 00:06:25]} {[%emt 00:00:30]} f5 {[%clk 00:14:41]} {[%emt
00:00:37]} 21. Ree1 {[%clk 00:06:14]} {[%emt 00:00:16]} g5 {[%clk 00:10:51]}
{[%emt 00:03:55]} 22. Ne5 {[%clk 00:05:48]} {[%emt 00:00:31]} f6 {[%clk
00:06:55]} {[%emt 00:04:02]} 23. c5 {[%clk 00:05:47]} {[%emt 00:00:05]} Qd5
{[%clk 00:06:14]} {[%emt 00:00:46]} 24. Nf7 {[%clk 00:04:39]} {[%emt 00:01:13]}
g4 {[%clk 00:05:46]} {[%emt 00:00:34]} 25. Nxh8 {[%clk 00:04:42]} {[%emt
00:00:02]} gxh3 {[%clk 00:05:31]} {[%emt 00:00:20]} 26. f3 {[%clk 00:04:40]}
{[%emt 00:00:07]} Rg8 {[%clk 00:04:31]} {[%emt 00:01:05]} 27. Rd2 {[%clk
00:01:44]} {[%emt 00:03:01]} Qxf3 {[%clk 00:03:13]} {[%emt 00:01:24]} 28. Rf2
{[%clk 00:01:38]} {[%emt 00:00:10]} Qg3 {[%clk 00:02:53]} {[%emt 00:00:25]} 29.
Kf1 {[%clk 00:01:26]} {[%emt 00:00:17]} h2 {[%clk 00:02:23]} {[%emt 00:00:35]}
30. Ke2 {[%clk 00:01:29]} {[%emt 00:00:02]} Rxh8 {[%clk 00:02:23]} {[%emt
00:00:05]} 31. Rh1 {[%clk 00:01:24]} {[%emt 00:00:10]} Rh4 {[%clk 00:01:50]}
{[%emt 00:00:38]} 32. Kf1 {[%clk 00:01:11]} {[%emt 00:00:17]} Re4 {[%clk
00:01:22]} {[%emt 00:00:33]} 33. Qc3 {[%clk 00:01:06]} {[%emt 00:00:10]} Re3
{[%clk 00:01:13]} {[%emt 00:00:15]} 34. Qc4 {[%clk 00:01:07]} {[%emt 00:00:04]}
Qg4 {[%clk 00:01:11]} {[%emt 00:00:06]} 35. Qc2 {[%clk 00:01:02]} {[%emt
00:00:10]} Bg3 {[%clk 00:01:10]} {[%emt 00:00:06]} 36. Rxh2 {[%clk 00:00:31]}
{[%emt 00:00:36]} Bxh2 {[%clk 00:00:50]} {[%emt 00:00:25]} 37. Qd2 {[%clk
00:00:35]} {[%emt 00:00:01]} Qe4 {[%emt 00:00:33]} 38. g4 {[%clk 00:00:18]}
{[%emt 00:00:02]} Qh1# {[%emt 00:00:02]} 0-1